Cogmind - Beta 15 @@@ ROGUE MODE // 2025.05.12 @ 12:27:53 Player: TheTravelingGuy Result: Self-destructed Performance ------------- Evolutions (2) 1000 Regions Visited (5) 1000 Robots Destroyed (30) 150 Value Destroyed (584) 584 Prototype IDs (0) 0 Alien Tech Used (0) 0 Bonus (0) 0 TOTAL SCORE: 2734 Bonus ------- None Cogmind --------- Core Integrity 452/550 Matter 156/300 Energy 275/275 System Corruption 0% Temperature Cool (0) Movement Walking (120) Location -8/Materials Parts ------- > --- POWER (1) -------- Deuterium Engine > --- PROPULSION (4) --- Aluminum Leg Aluminum Leg Aluminum Leg > --- UTILITY (4) ------ Medium Storage Unit Seismic Detector System Shield > --- WEAPON (2) ------- Rocket Launcher > --- INVENTORY (10) --- Light Deuterium Engine Large Matter Pod (150) Advanced Weight Redist. System Improved Signal Interpreter Light Assault Rifle Heavy Assault Rifle Heavy Assault Rifle Heavy Assault Rifle Heavy Assault Rifle Peak State ------------ > --- POWER ------------ Deuterium Engine > --- PROPULSION ------- Aluminum Leg Aluminum Leg Aluminum Leg Aluminum Leg > --- UTILITY ---------- Medium Storage Unit Seismic Detector System Shield > --- WEAPON ----------- Heavy Assault Rifle Heavy Assault Rifle > --- INVENTORY -------- Light Ion Engine Light Deuterium Engine Large Matter Pod Advanced Weight Redist. System Heavy Assault Rifle Rocket Launcher [Rating: 17] Favorites ----------- Power Ion Engine Engine Ion Engine Propulsion Aluminum Leg Treads Light Treads Leg Aluminum Leg Wheel Compact Wheel Utility Seismic Detector Device Seismic Detector Storage Medium Storage Unit Hackware System Shield Weapon Small Laser Energy Gun Small Laser Ballistic Gun Assault Rifle Launcher Rocket Launcher Build | -11 -10 -10 -10 -9 -8 ------- Run | Yrd Mat Min Exi Min Mat Slots Evolved 4 | . . . . . 4 Power . | . . . . . . Propulsion 2 | . . . . . 2 Utility 2 | . . . . . 2 Weapon . | . . . . . . Parts Attached 24 | 7 5 . . . 12 Power 2 | 1 . . . . 1 Engine 2 | 1 . . . . 1 Core . | . . . . . . Reactor . | . . . . . . Propulsion 9 | 2 4 . . . 3 Treads 2 | . 2 . . . . Leg 5 | . 2 . . . 3 Wheel 2 | 2 . . . . . Hover . | . . . . . . Flight . | . . . . . . Utility 5 | 2 1 . . . 2 Device 1 | 1 . . . . . Storage 2 | 1 1 . . . . Processor . | . . . . . . Hackware 2 | . . . . . 2 Protection . | . . . . . . Artifact . | . . . . . . Weapon 8 | 2 . . . . 6 Energy Gun 1 | 1 . . . . . Energy Cannon . | . . . . . . Ballistic Gun 6 | 1 . . . . 5 Ballistic Cannon . | . . . . . . Launcher 1 | . . . . . 1 Special Weapon . | . . . . . . Impact Weapon . | . . . . . . Slashing Weapon . | . . . . . . Piercing Weapon . | . . . . . . Special Melee Weapon . | . . . . . . Unidentified Prototypes . | . . . . . . Parts Lost 6 | . . . . . 6 Power . | . . . . . . Propulsion 2 | . . . . . 2 Utility 1 | . . . . . 1 Weapon 3 | . . . . . 3 Highest Loss Streak 4 | . . . . . 4 To Critical Strikes . | . . . . . . Average Backups 8 | 3 6 9 10 10 7 Power 1 | . 1 1 1 1 1 Propulsion 2 | 2 3 3 3 3 . Utility 2 | . 1 2 2 2 1 Weapon 2 | . 1 2 4 4 4 Tool/Special . | . . . . . . Unused Backups 8 | . . 2 . . 6 Power 2 | . . . . . 2 Propulsion . | . . . . . . Utility 4 | . . 1 . . 3 Weapon 2 | . . 1 . . 1 Tool/Special . | . . . . . . Average Slot Usage (%) 97 | . 100 100 100 100 88 Engine 12 | . 14 14 14 14 9 Treads 2 | . 7 . . . . Leg 24 | . 15 28 28 28 33 Wheel 1 | . 5 . . . . Device 12 | . 14 14 14 14 9 Storage 12 | . 14 14 14 14 9 Hackware 2 | . . . . . 10 Energy Gun 11 | . 14 14 14 14 2 Ballistic Gun 13 | . 14 14 14 14 12 Peak Build Rating 17 | 7 8 8 8 8 17 Average Rating 9 | 5 7 8 8 8 15 On Entrance 6 | . 7 8 8 8 8 Naked Turns . | . . . . . . Heaviest Build 27 | 14 19 19 19 19 27 Greatest Support 40 | 26 40 20 20 20 40 Greatest Overweight (x) 1 | . 1 . . . . Average Overweight (x) . | . . . . . . Largest Inventory Capacity 10 | 8 10 10 10 10 10 Average Capacity 9 | 6 8 10 10 10 10 Most Carried 10 | 6 8 10 10 10 9 Average Carried 8 | 3 7 9 10 10 7 Final Capacity 10 | 8 10 10 10 10 10 Final Carried 10 | 6 8 10 10 10 9 Class Distribution -------------------- 59% | Scavenger-Mutant 40% | Mutant Dominant Class ---------------- Mutant | -10/Materials Scavenger-Mutant | -10/Mines Scavenger-Mutant | -10/Exiles Scavenger-Mutant | -9/Mines Scavenger-Mutant | -8/Materials Resources | -11 -10 -10 -10 -9 -8 ----------- Run | Yrd Mat Min Exi Min Mat Matter Collected 765 | 174 413 45 . . 133 Remotely . | . . . . . . Salvage Created 720 | 17 336 79 . . 288 Parts 71 | 3 30 10 . . 28 Haulers Intercepted 2 | . 1 . . . 1 Recyclers Shooed 2 | . 2 . . . . Parts Field Recycled . | . . . . . . Retrieved Matter . | . . . . . . Parts Self-Destructed . | . . . . . . Prevented . | . . . . . . Kills | -11 -10 -10 -10 -9 -8 ------- Run | Yrd Mat Min Exi Min Mat Combat Hostiles Destroyed 21 | . 6 6 . . 9 Guns 16 | . 6 6 . . 4 AOE 5 | . . . . . 5 Classes Destroyed 10 | 1 6 . . . 3 Worker 2 | . 2 . . . . Builder 1 | . . . . . 1 Tunneler 1 | 1 . . . . . Hauler 2 | . 1 . . . 1 Operator 1 | . 1 . . . . Watcher 2 | . 2 . . . . Swarmer 13 | . 3 6 . . 4 Grunt 6 | . 3 . . . 3 Duelist 1 | . . . . . 1 Sentry 1 | . . . . . 1 Best Kill Streak 6 | 1 3 3 . . 6 Combat Bots Only 5 | . 2 3 . . 5 Max Kills in Single Turn 2 | 1 2 1 . . 2 Gunslinging 1 | . 1 . . . . Exploded 2 | . . . . . 2 Melee . | . . . . . . Uniques/NPCs Destroyed . | . . . . . . Combat | -11 -10 -10 -10 -9 -8 -------- Run | Yrd Mat Min Exi Min Mat Hostile Shots Fired 122 | . 38 31 . . 53 Missed 37 | . 9 9 . . 19 Hits 85 | . 29 22 . . 34 Melee 1 | . . . . . 1 Projectile 84 | . 29 22 . . 33 Critical Strikes 2 | . 2 . . . . Damage Taken 1081 | . 261 177 . . 643 Core 205 | . 65 42 . . 98 Absorbed by Shields . | . . . . . . Core Remaining (%) 78 | 100 . . . 57 . Volleys Fired 74 | 3 36 10 . . 25 Largest 2 | 2 2 2 . . 2 Hottest 60 | 60 60 60 . . 60 Shots Fired 142 | 6 71 20 1 . 44 Gun 136 | 6 71 20 1 . 38 Cannon . | . . . . . . Launcher 6 | . . . . . 6 Special . | . . . . . . Kinetic 84 | 3 36 10 1 . 34 Thermal 52 | 3 35 10 . . 4 Explosive 6 | . . . . . 6 Electromagnetic . | . . . . . . Robot Hit Streak 9 | 2 8 5 . . 9 Robot Miss Streak 5 | 1 5 4 . . 4 Penetration Max . | . . . . . . Secondary Targets 4 | . 1 2 . . 1 Max Gunslinging Chain 1 | . 1 1 . . 1 Shots Hit Robots 76 | 4 36 11 . . 25 Core Hits 48 | 1 21 6 . . 20 Critical Kills . | . . . . . . Critical Parts Destroyed . | . . . . . . Critical Strikes . | . . . . . . Melee Attacks . | . . . . . . Impact . | . . . . . . Slashing . | . . . . . . Piercing . | . . . . . . Sneak Attacks . | . . . . . . Combat Hostiles . | . . . . . . Follow-up Attacks . | . . . . . . Damage Inflicted 1538 | 45 446 123 . . 924 Guns 899 | 45 446 123 . . 285 Cannons . | . . . . . . Explosions 639 | . . . . . 639 Melee . | . . . . . . Ramming . | . . . . . . Kinetic 580 | 24 249 45 . . 262 Thermal 319 | 21 197 78 . . 23 Explosive 639 | . . . . . 639 Electromagnetic . | . . . . . . Impact . | . . . . . . Slashing . | . . . . . . Piercing . | . . . . . . Highest Corruption 1 | . 1 1 1 1 . Average Corruption 1 | . 1 1 1 1 . Corruption Purged . | . . . . . . Corruption Blocked . | . . . . . . Effects 8 | . 1 5 1 1 . Message Errors 2 | . . 2 . . . Matter Fused 2 | . . 2 . . . Heat Flow Errors 1 | . 1 . . . . Data Loss (minor) 2 | . . 1 . 1 . Misfires 1 | . . . 1 . . Overload Shots . | . . . . . . Overflow Damage 38 | . . . . . 38 Projectiles . | . . . . . . Explosions 38 | . . . . . 38 Melee . | . . . . . . Knockbacks . | . . . . . . Impact . | . . . . . . Kinetic . | . . . . . . Secondary . | . . . . . . Self-Inflicted Damage 226 | . . . . . 226 Shots 5 | . . . . . 5 Rammed . | . . . . . . Targets Rammed . | . . . . . . Kicked . | . . . . . . Crushed . | . . . . . . Highest Temperature 103 | . 103 . . . 25 Average Temperature 24 | . 27 . . . 11 Received Heat Transfer 150 | . 60 . . . 90 Siege Activations . | . . . . . . Martial Activations . | . . . . . . Shielding Activations . | . . . . . . Robots Disrupted . | . . . . . . Combat Hostiles . | . . . . . . Robots Corrupted . | . . . . . . Combat Hostiles . | . . . . . . Parts Fried . | . . . . . . Impact Corruptions . | . . . . . . Robots Melted . | . . . . . . Combat Hostiles . | . . . . . . Parts Melted . | . . . . . . Heat Transferred 725 | 50 450 175 . . 50 Parts Sabotaged . | . . . . . . Parts Stolen . | . . . . . . Parts Stripped . | . . . . . . Power Chain Reactions . | . . . . . . Alert | -11 -10 -10 -10 -9 -8 ------- Run | Yrd Mat Min Exi Min Mat Maximum Alert Level 1 | . . . . . 1 Low Security (%) 99 | 100 100 100 . 100 99 Level 1 . | . . . . . . Level 2 . | . . . . . . Level 3 . | . . . . . . Level 4 . | . . . . . . Level 5 . | . . . . . . High Security . | . . . . . . Max Security . | . . . . . . Peak Influence 217 | 5 100 70 . . 217 Initial . | . . . . . . Average 32 | . 37 23 . . 48 Influence Increases 731 | 5 221 140 . . 365 Destroy 0b10 Robot/C 420 | . 120 120 . . 180 Destroy 0b10 Robot/NC 45 | 5 30 . . . 10 Destroy Leader 78 | . 36 20 . . 22 Successful Hack 53 | . 35 . . . 18 Disable Machine 60 | . . . . . 60 Destroy Structure 60 | . . . . . 60 Lose Combat Pursuer 15 | . . . . . 15 Influence Decreases 514 | 5 221 140 . . 148 Time Decay 476 | 5 221 140 . . 110 Lost Part 20 | . . . . . 20 Purge Threat 18 | . . . . . 18 Squads Dispatched 4 | . 2 . . . 2 Investigation 1 | . . . . . 1 Extermination . | . . . . . . Reinforcement 3 | . 2 . . . 1 Assault . | . . . . . . Garrison . | . . . . . . Intercept . | . . . . . . Searches Triggered . | . . . . . . Construction Impeded . | . . . . . . Haulers Reinforced . | . . . . . . Active Scanning Responses . | . . . . . . Cargo Convoy Interrupts . | . . . . . . Stealth | -11 -10 -10 -10 -9 -8 --------- Run | Yrd Mat Min Exi Min Mat Distress Signals 3 | . 2 . . . 1 Communications Jammed . | . . . . . . Distress Signals . | . . . . . . Times Spotted 40 | . 13 6 . . 21 Peak Tracking Total 8 | . 4 3 . . 8 Tactical Retreats 1 | . . . . . 1 Traps | -11 -10 -10 -10 -9 -8 ------- Run | Yrd Mat Min Exi Min Mat Traps Triggered 1 | . 1 . . . . Indirectly . | . . . . . . Trap Hack Attempts . | . . . . . . Triggered . | . . . . . . Disarmed . | . . . . . . Reprogrammed . | . . . . . . Reused . | . . . . . . Traps Extracted . | . . . . . . Installed . | . . . . . . Triggered . | . . . . . . Machines | -11 -10 -10 -10 -9 -8 ---------- Run | Yrd Mat Min Exi Min Mat Machines Disabled 4 | . . . . . 4 Max in Single Turn 2 | . . . . . 2 Machines Repaired . | . . . . . . Machines Dismantled . | . . . . . . Machines Sabotaged . | . . . . . . Overloaded Fab Kills . | . . . . . . Hacking | -11 -10 -10 -10 -9 -8 --------- Run | Yrd Mat Min Exi Min Mat Machines Accessed 10 | . 6 . 1 . 3 Terminals 7 | . 5 . . . 2 Fabricators . | . . . . . . Repair Stations . | . . . . . . Recycling Units 2 | . 1 . . . 1 Scanalyzers . | . . . . . . Garrison Access . | . . . . . . Total Hacks 34 | . 18 . 1 . 15 Successful 21 | . 11 . 1 . 9 Failed 13 | . 7 . . . 6 Catastrophic 5 | . 2 . . . 3 Database Lockouts . | . . . . . . Manual 29 | . 16 . . . 13 Terminals 31 | . 17 . . . 14 Fabricators . | . . . . . . Repair Stations . | . . . . . . Recycling Units 2 | . 1 . . . 1 Scanalyzers . | . . . . . . Garrison Access . | . . . . . . Terminal Hacks 12 | . 5 . 1 . 6 Record 1 | . . . 1 . . Level Access Points 1 | . . . . . 1 Branch Access Points 1 | . . . . . 1 Unreport Threat 1 | . . . . . 1 Hauler Manifests 3 | . 2 . . . 1 Zone Layout 5 | . 3 . . . 2 Fabricator Hacks . | . . . . . . Repair Station Hacks . | . . . . . . Recycling Unit Hacks 2 | . 1 . . . 1 Retrieve Components 2 | . 1 . . . 1 Scanalyzer . | . . . . . . Garrison Access Hacks . | . . . . . . Unauthorized Hacks 7 | . 5 . . . 2 Terminals 7 | . 5 . . . 2 Botnet 7 | . 5 . . . 2 Fabricators . | . . . . . . Repair Stations . | . . . . . . Recycling Units . | . . . . . . Scanalyzers . | . . . . . . Garrison Access . | . . . . . . Data Cores Recovered . | . . . . . . Used . | . . . . . . Hacking Detections 8 | . 5 . . . 3 Full Trace Events 2 | . 1 . . . 1 Feedback Events . | . . . . . . Feedback Blocked . | . . . . . . Robot Schematics Acquired . | . . . . . . Robots Built . | . . . . . . Authchips . | . . . . . . Time . | . . . . . . Total Robot Build Rating . | . . . . . . Part Schematics Acquired . | . . . . . . Parts Built . | . . . . . . Authchips . | . . . . . . Time . | . . . . . . Total Part Build Rating . | . . . . . . Parts Repaired . | . . . . . . Time . | . . . . . . Parts Recycled . | . . . . . . Recycled Matter . | . . . . . . Retrieved Matter . | . . . . . . Retrieved Components 11 | . 8 . . . 3 Parts Scanalyzed . | . . . . . . Part Schematics Acquired . | . . . . . . Parts Damaged . | . . . . . . Bothacking | -11 -10 -10 -10 -9 -8 ------------ Run | Yrd Mat Min Exi Min Mat Used RIF Installer . | . . . . . . Robots Hacked . | . . . . . . Non-combat . | . . . . . . Combat . | . . . . . . Robot Hacks Applied . | . . . . . . Relay Couplers Released . | . . . . . . Fabnet Peak Effective % . | . . . . . . Robots Rewired . | . . . . . . Allies Hacked . | . . . . . . Hacks Repelled . | . . . . . . Allies | -11 -10 -10 -10 -9 -8 -------- Run | Yrd Mat Min Exi Min Mat Total Allies . | . . . . . . Largest Group . | . . . . . . Highest-Rated Group . | . . . . . . Highest-Rated Ally . | . . . . . . Total Orders . | . . . . . . Ally Attacks . | . . . . . . Total Damage . | . . . . . . Kills . | . . . . . . Allies Corrupted . | . . . . . . Allies Melted . | . . . . . . Intel | -11 -10 -10 -10 -9 -8 ------- Run | Yrd Mat Min Exi Min Mat Active Infowar (turns) 1634 | 22 539 382 285 56 350 Seismic 1634 | 22 539 382 285 56 350 Robot Analysis Total . | . . . . . . Derelict Logs Recovered . | . . . . . . Drone Launches . | . . . . . . Drone Recoveries . | . . . . . . Exploration | -11 -10 -10 -10 -9 -8 ------------- Run | Yrd Mat Min Exi Min Mat Turns Passed 1693 | 81 539 382 285 56 350 Spaces Moved 1159 | 64 348 288 238 47 174 Core 7 | 7 . . . . . Treads 51 | . 51 . . . . Legs 967 | . 220 288 238 47 174 Wheels 134 | 57 77 . . . . Hover . | . . . . . . Flight . | . . . . . . Fastest Speed 50 | 50 90 120 120 120 120 Average Speed 117 | 86 119 120 120 120 120 Slowest Speed 190 | 100 190 120 120 120 120 Overloaded Moves . | . . . . . . Propulsion Burnouts . | . . . . . . Robots Hopped . | . . . . . . Potential Cave-ins . | . . . . . . Cave-ins Triggered . | . . . . . . Exploration Rate (%) 36 | 3 59 53 63 17 24 Regions Visited 5 Branch Regions 3 Pre-discovered Areas . | . . . . . . Known Exits Taken . | . . . . . . Unknown Exits Taken 5 | 1 1 1 1 1 . Scrap Searched 1 | . . 1 . . . Spaces Dug 16 | . . . . . 16 Terrain Destroyed 71 | . . . . . 71 Melee . | . . . . . . Projectile . | . . . . . . AOE 71 | . . . . . 71 Terrain Rammed . | . . . . . . Walls Destroyed . | . . . . . . Machines Disabled . | . . . . . . Actions | -11 -10 -10 -10 -9 -8 --------- Run | Yrd Mat Min Exi Min Mat Total 1339 | 80 402 305 237 46 269 Wait 49 | . 1 2 . . 46 Move 1154 | 63 347 287 237 46 174 Hop . | . . . . . . Pick Up 23 | 7 6 4 . . 6 Fast Attach 10 | 6 2 . . . 2 Attach 7 | 1 . . . . 6 Detach . | . . . . . . Swap 10 | . 3 . . . 7 Drop 12 | . 7 2 . . 3 Fire 74 | 3 36 10 . . 25 Melee . | . . . . . . Ram . | . . . . . . Kick . | . . . . . . Crush . | . . . . . . Escape Stasis . | . . . . . . Rewire . | . . . . . . Trap . | . . . . . . Miscellaneous . | . . . . . . Route ------- -11/Scrapyard -10/Materials (discovered 3 exits: [Mat x2] / [*Min]) -10/Mines (discovered 3 exits: [*Mat x2] / *Exi) -10/Exiles -9/Mines -8/Materials (discovered 3 exits: Fac x3) History --------- Turn | Location | Event 14 | -11/Scrapyard | Discovered new exit (range 16) 82 | -11/Scrapyard | Entered Materials 142 | -10/Materials | Discovered new exit (range 11) 347 | -10/Materials | Build established: Mutant 403 | -10/Materials | Discovered new exit (range 17) 474 | -10/Materials | Discovered new exit (range 19) 621 | -10/Materials | Entered Mines 655 | -10/Mines | Met a Derelict bent on vengeance 745 | -10/Mines | Received a Rocket Launcher from a helpful Derelict 753 | -10/Mines | Discovered new exit (range 7) 910 | -10/Mines | Build established: Scavenger-Mutant 917 | -10/Mines | Discovered new exit (range 8) 934 | -10/Mines | Joined a pair of Derelicts in attacking an 0b10 outpost 997 | -10/Mines | Deemed a non-threat by the Exiles lab entrance 998 | -10/Mines | Discovered new exit (range 5) 1003 | -10/Mines | Entered Exiles 1003 | -10/Exiles | Found Exiles lab abandoned 1274 | -10/Exiles | Discovered new exit (range 14) 1288 | -10/Exiles | Entered Mines 1290 | -9/Mines | Discovered new exit (range 8) 1344 | -9/Mines | Entered Materials 1344 | -8/Materials | Evolved 4 slots: Propulsion x2, Utility x2 1486 | -8/Materials | Lost 4 parts (1n1u2w) 1522 | -8/Materials | Identified exit to Factory 1694 | -8/Materials | Self-destructed Last Messages --------------- 01647_ L-31 Rogue destroyed. 01650_ Acquired 42 matter. 01658_ K-01 Serf collects debris. 01661_ The unstable cave ceiling collapses. 01662_ K-01 Serf collects debris. 01664_ R-06 Scavenger collects Katana. 01666_ K-01 Serf collects debris. 01667_ The unstable cave ceiling collapses. 01667_ R-06 Scavenger collects Core Shielding. 01668_ U-05 Engineer destroyed. 01669_ K-01 Serf collects debris. 01671_ Acquired 19 matter. 01676_ R-06 Scavenger collects Wheel. 01689_ Material Compactor disabled. 01692_ Destroyed Lgt. Ion Engine. 01692_ Destroyed Flight Unit. 01692_ S-10 Pest destroyed. 01692_ Hvy. Assault Rifle destroyed. 01692_ Destroyed Hvy. Assault Rifle. 01692_ S-10 Pest destroyed. Map ----- +----------------------------------------------------+ | ?????????????????????????????????????????????????? | | ?????????????????????????????????????????????????? | | ?????????????????????????????????????????????????? | | ????????????????????????????????????????? | | ## ????????????????????????????????????????? | | ###+#####????????????????????????????????????????? | | ????????????????????????????????????????? | | ????????????????????????????????????????? | | ????????????????????????????????????????? | | """"" ????????????????????????????????????????? | | """"" ????????????????+???????????????????????? | | """"" ???????????????? ##?????????????????????? | | ??????????????## ?????????????????????? | | #########??????????????# ????????????????????? | | # ??????????????/ ????????????????????? | | # ??????????????# ???? ???????????????? | | # "T??????????????# ??? ??????????????? | | """ # ""??????????????# ^ ? #??????????????? | | """ # ??????????????# #??????????????? | | """ ##+################m """u #??????????????? | | + ?w %""""" #??????????????? | | # ##############?# * " +??????????????? | | +###+# #??????????????# #??????????????? | | #????????????### #??????????????? | | ##########?????????#"" rss #??????????????? | | # #?????????#"T @ % #??????????????? | | # """""#?????????#"" !! #??????????????? | | # """""#?????????### !! #??????????????? | | # """""#???????????# !! #??????????????? | | + """""#???????????# ##?????????????? | | # #######????? #?????????????? | | ### # ## ###??#| #?????????????? | | ??# # #??#*==[ #?????????????? | | ??# # ##?# #?????????????? | | ??## #### ####g## # #?????????????? | | ???# "# # g ######+###?????????????? | | ???# #### # #??????????????????????? | | ???####??# " T #??????????????????????? | | ?????????# # #??????????????????????? | | ?????????# # #??????????????????????? | | ?????????# #% ##??????????????????????? | | ?????????## ## #???????????????????????? | | ??????????# # ### % #???????????????????????? | | ??????????## * # %#???????????????????????? | | ???????????# # #???????????????????????? | | ???????????# """"""" # #???????????????????????? | | ???????????# """"""" + #???????????????????????? | | ???????????# """"""" ???????????????????????? | | ???????????# """"""" ???????????????????????? | | ???????????# """"""" #???????????????????????? | +----------------------------------------------------+ Best States ------------- Heat Dissipation 31 Energy Generation 14 Energy Capacity 275 Matter Stores 300 Matter Capacity 300 Sight Range 16 Terrain Scan Density 10 Evasion (%) 55 Recoil Reduction 2 Offensive Hacking 10 Defensive Hacking 10 Item Schematics ----------------- None Robot Schematics ------------------ None Fabricated ------------ Nothing Repaired ---------- Nothing Alien Tech Used ----------------- None Achievements -------------- None Challenges ------------ None Game ------ Seed CloakingMasterShell Manual? 0 Play Time 00:17:16 Cumulative 24.6 hours Start 2025.05.12 @ 08:08:09 End 2025.05.12 @ 12:27:53 Sessions 2 Manual Loads 0 Difficulty Rogue Special Mode None Game No. 42 Rogue 41 Adventurer 1 Explorer 0 Win Type - Total 0 Types 0/0/0/0/0/0/0/0/0/0 Lore% 16 Gallery% 24 Achievement% 23 Wizard Run 0 Options --------- Layout 0 ASCII 0 Keyboard 0 Movement Mouse Keybinds 0 Fullscreen 2 Font 18/SmallcapsGlow Map View 76x50 Zoom Use 0% Tactical HUD 1 Map Filters NONE Filters NONE Steam 1 RUN: fb258ebd-c5da-4297-8f40-edbc1ac71c6d